[Event "Vienna Chess Open 2019"]
[Site "Vienna"]
[Date "2019.08.20"]
[Round "5.1"]
[White "Sadilek, Peter"]
[Black "Handler, Lukas"]
[Result "0-1"]
[ECO "E04"]
[WhiteElo "2411"]
[BlackElo "2411"]
[Annotator "NA"]
[PlyCount "60"]
[EventDate "2019.08.17"]
[EventType "swiss"]
[EventCountry "AUT"]
[SourceTitle "playchess.com"]
[Source "ChessBase"]
[SourceQuality "1"]
[TimeControl "40/5400+30:1800+30"]

1. d4 {[%emt 0:11:14]} d5 {[%emt 0:00:00]} 2. c4 {[%emt 0:00:42]} e6 {[%emt 0:00:00]} 3. g3 {[%emt 0:01:42]} Nf6 {[%emt 0:00:00]} 4. Bg2 {[%emt 0:00:04]} dxc4 {[%emt 0:00:22]} 5. Nf3 {[%emt 0:00:43]} Bd7 {[%emt 0:00:11]} 6. Nbd2 {[%emt 0:05:19]} Bb5 {[%emt 0:15:58]} 7. Ne5 {[%emt 0:15:54]} Nbd7 {[%emt 0:14:42]} 8. Bxb7 {[%emt 0:08:44]} Nxe5 {[%emt 0:00:19]} 9. dxe5 {[%emt 0:00:16]} Rb8 {[%emt 0:00:32]} 10. Bg2 {[%emt 0:06:57]} Ng4 {[%emt 0:18:34]} 11. a4 {[%emt 0:07:03]} Ba6 {[%emt 0:06:54]} 12. Bc6+ {[%emt 0:06:06]} Ke7 {[%emt 0:00:04]} 13. b3 {[%emt 0:08:56]} Nxe5 {[%emt 0:04:15]} 14. Bb5 {[%emt 0:22:09]} Bb7 {[%emt 0:11:30]} 15. O-O {[%emt 0:01:08]} Qd5 {[%emt 0:01:52]} 16. e4 {[%emt 0:00:31]} Qd4 {[%emt 0:00:56]} 17. Ba3+ {[%emt 0:00:29]} Kf6 {[%emt 0:00:15]} 18. Nxc4 {[%emt 0:00:30]} Qxd1 {[%emt 0:02:00]} 19. Rfxd1 {[%emt 0:00:22]} Nxc4 {[%emt 0:02:42]} 20. Bxf8 {[%emt 0:00:35]} Rhxf8 {[%emt 0:00:49]} 21. Bxc4 {[%emt 0:00:11]} Bxe4 {[%emt 0:01:01]} 22. Rd7 {[%emt 0:00:27]} Rb7 {[%emt 0:01:17]} 23. Rc1 {[%emt 0:00:46]} Rfb8 {[%emt 0:01:52]} 24. a5 {[%emt 0:00:39]} c6 {[%emt 0:00:45]} 25. Rxb7 {[%emt 0:00:30]} Rxb7 {[%emt 0:00:05]} 26. Rc3 {[%emt 0:00:29]} Ke5 {[%emt 0:00:26]} 27. Ba6 {[%emt 0:00:24]} Rb4 {[%emt 0:00:31]} 28. Bc4 {[%emt 0:00:27]} Kd6 {[%emt 0:01:44]} 29. Kf1 {[%emt 0:00:40]} Bd5 {[%emt 0:00:23]} 30. Bxd5 {[%emt 0:00:28]} exd5 {[%emt 0:00:11]} 0-1

[Event "Vienna Chess Open 2019"]
[Site "Vienna"]
[Date "2019.08.20"]
[Round "5.2"]
[White "Buhmann, Rainer"]
[Black "Kowalski, Igor"]
[Result "1-0"]
[ECO "B33"]
[WhiteElo "2574"]
[BlackElo "2574"]
[Annotator "ChessBase"]
[PlyCount "89"]
[EventDate "2019.08.17"]
[EventType "swiss"]
[EventCountry "AUT"]
[SourceTitle "playchess.com"]
[Source "ChessBase"]
[SourceQuality "1"]
[TimeControl "40/5400+30:1800+30"]

1. e4 {[%emt 0:00:00]} c5 {[%emt 0:00:00]} 2. Nf3 {[%emt 0:00:00]} Nc6 {[%emt 0:00:00]} 3. d4 {[%emt 0:00:01]} cxd4 {[%emt 0:00:00]} 4. Nxd4 {[%emt 0:00:06]} Nf6 {[%emt 0:00:00]} 5. Nc3 {[%emt 0:00:08]} e5 {[%emt 0:00:00]} 6. Ndb5 {[%emt 0:00:12]} d6 {[%emt 0:00:00]} 7. Bg5 {[%emt 0:00:42]} a6 {[%emt 0:00:00]} 8. Na3 {[%emt 0:00:28]} b5 {[%emt 0:00:05]} 9. Bxf6 {[%emt 0:00:21]} gxf6 {[%emt 0:00:05]} 10. Nd5 {[%emt 0:00:26]} Bg7 {[%emt 0:00:26]} 11. Bd3 {[%emt 0:00:43]} O-O {[%emt 0:00:11]} 12. O-O {[%emt 0:00:41]} Be6 {[%emt 0:05:48]} 13. Ne3 {[%emt 0:09:32]} Ne7 {[%emt 0:05:39]} 14. c4 {[%emt 0:01:38]} b4 {[%emt 0:02:20]} 15. Nac2 {[%emt 0:00:14]} a5 {[%emt 0:00:05]} 16. Qf3 {[%emt 0:07:46]} Qb6 {[%emt 0:09:06]} 17. Nd5 {[%emt 0:11:14]} Bxd5 {[%emt 0:01:28]} 18. exd5 {[%emt 0:05:42]} a4 {[%emt 0:11:16]} 19. Ne3 {[%emt 0:16:33]} Rfe8 {[%emt 0:15:05]} 20. Be4 {[%emt 0:05:40]} b3 {[%emt 0:02:23]} 21. a3 {[%emt 0:08:12]} Qd4 {[%emt 0:08:31]} 22. Rab1 {[%emt 0:05:59]} Rac8 {[%emt 0:04:09]} 23. Rfd1 {[%emt 0:00:47]} Qb6 {[%emt 0:00:58]} 24. Rbc1 {[%emt 0:05:08]} h6 {[%emt 0:02:45]} 25. Rc3 {[%emt 0:01:45]} Kf8 {[%emt 0:00:25]} 26. Qh5 {[%emt 0:05:47]} f5 {[%emt 0:03:06]} 27. Nxf5 {[%emt 0:04:50]} Nxf5 {[%emt 0:00:06]} 28. Qxf5 {[%emt 0:00:18]} Rc7 {[%emt 0:00:29]} 29. Qg4 {[%emt 0:02:28]} Qa6 {[%emt 0:01:15]} 30. Rdc1 {[%emt 0:03:38]} Qa7 {[%emt 0:03:23]} 31. h4 {[%emt 0:02:19]} Qd4 {[%emt 0:04:18]} 32. Rd1 {[%emt 0:00:12]} Qa7 {[%emt 0:00:04]} 33. Rdd3 {[%emt 0:01:01]} f5 {[%emt 0:02:31]} 34. Rf3 {[%emt 0:01:31]} f4 {[%emt 0:00:07]} 35. Qg6 {[%emt 0:00:22]} Rd8 {[%emt 0:00:44]} 36. c5 {[%emt 0:00:51]} Rxc5 {[%emt 0:00:13]} 37. Rxc5 {[%emt 0:00:05]} Qxc5 {[%emt 0:00:04]} 38. Rc3 {[%emt 0:00:12]} Qa7 {[%emt 0:00:13]} 39. Rc6 {[%emt 0:00:35]} Qf7 {[%emt 0:00:17]} 40. Qg4 {[%emt 0:00:47]} h5 {[%emt 0:02:39]} 41. Qe2 {[%emt 0:07:45]} f3 {[%emt 0:13:44]} 42. Qa6 {[%emt 0:10:19]} Qe7 {[%emt 0:05:33]} 43. g3 {[%emt 0:00:44]} Bf6 {[%emt 0:00:09]} 44. Qxa4 {[%emt 0:00:41]} Bxh4 {[%emt 0:00:04]} 45. Qxb3 {[%emt 0:00:58]} 1-0

[Event "Vienna Chess Open 2019"]
[Site "Vienna"]
[Date "2019.08.20"]
[Round "5.2"]
[White "Mesaros, Florian"]
[Black "Matt, Fabian"]
[Result "0-1"]
[ECO "D20"]
[WhiteElo "2420"]
[BlackElo "2271"]
[Annotator "NA"]
[PlyCount "74"]
[EventDate "2019.08.17"]
[EventType "swiss"]
[EventCountry "AUT"]
[SourceTitle "playchess.com"]
[Source "ChessBase"]
[SourceQuality "1"]
[TimeControl "40/5400+30:1800+30"]

1. d4 {[%emt 0:03:29]} d5 {[%emt 0:00:00]} 2. c4 {[%emt 0:00:05]} dxc4 {[%emt 0:00:00]} 3. e3 {[%emt 0:00:45]} e6 {[%emt 0:00:14]} 4. Bxc4 {[%emt 0:00:23]} Nf6 {[%emt 0:00:12]} 5. Nf3 {[%emt 0:00:06]} a6 {[%emt 0:00:06]} 6. O-O {[%emt 0:01:39]} b5 {[%emt 0:00:22]} 7. Bd3 {[%emt 0:06:46]} c5 {[%emt 0:02:41]} 8. a4 {[%emt 0:00:35]} b4 {[%emt 0:00:56]} 9. b3 {[%emt 0:02:52]} cxd4 {[%emt 0:04:35]} 10. Nxd4 {[%emt 0:01:53]} Bb7 {[%emt 0:03:08]} 11. Bb2 {[%emt 0:02:14]} Be7 {[%emt 0:02:32]} 12. Qe2 {[%emt 0:02:34]} Qd5 {[%emt 0:04:45]} 13. f3 {[%emt 0:07:09]} O-O {[%emt 0:00:29]} 14. Nd2 {[%emt 0:02:21]} Nbd7 {[%emt 0:02:24]} 15. Nc4 {[%emt 0:04:31]} Bc5 {[%emt 0:02:07]} 16. Kh1 {[%emt 0:09:30]} Rfd8 {[%emt 0:10:31]} 17. Rad1 {[%emt 0:02:04]} Qh5 {[%emt 0:00:51]} 18. g4 {[%emt 0:16:45]} Nxg4 {[%emt 0:14:23]} 19. Na5 {[%emt 0:00:37]} Nxe3 {[%emt 0:20:51]} 20. Nxb7 {[%emt 0:00:29]} Nxf1 {[%emt 0:00:06]} 21. Rxf1 {[%emt 0:01:05]} Re8 {[%emt 0:00:39]} 22. Nxc5 {[%emt 0:04:51]} Nxc5 {[%emt 0:00:09]} 23. Bc4 {[%emt 0:00:12]} Rad8 {[%emt 0:04:00]} 24. Rg1 {[%emt 0:01:44]} g6 {[%emt 0:01:11]} 25. Qe3 {[%emt 0:08:33]} Rc8 {[%emt 0:09:59]} 26. Ne2 {[%emt 0:07:15]} Nxa4 {[%emt 0:06:31]} 27. Rg5 {[%emt 0:04:08]} Qh6 {[%emt 0:02:20]} 28. Bd4 {[%emt 0:00:39]} e5 {[%emt 0:02:58]} 29. Bxe5 {[%emt 0:03:28]} Rxc4 {[%emt 0:00:49]} 30. bxc4 {[%emt 0:02:38]} f6 {[%emt 0:00:01]} 31. f4 {[%emt 0:02:24]} fxg5 {[%emt 0:00:50]} 32. Qd2 {[%emt 0:01:38]} Qh3 {[%emt 0:01:12]} 33. Ng3 {[%emt 0:00:36]} Qe6 {[%emt 0:01:14]} 34. Ne4 {[%emt 0:00:18]} Qc6 {[%emt 0:00:16]} 35. Qg2 {[%emt 0:00:13]} Re6 {[%emt 0:00:30]} 36. fxg5 {[%emt 0:00:42]} b3 {[%emt 0:00:41]} 37. Qf3 {[%emt 0:00:46]} b2 {[%emt 0:00:25]} 0-1

[Event "Vienna Chess Open 2019"]
[Site "Vienna"]
[Date "2019.08.20"]
[Round "5.2"]
[White "Ravi, Teja S."]
[Black "Stanec, Nikolaus"]
[Result "1/2-1/2"]
[ECO "A46"]
[WhiteElo "2420"]
[BlackElo "2483"]
[Annotator "ChessBase"]
[PlyCount "24"]
[EventDate "2019.08.17"]
[EventType "swiss"]
[EventCountry "AUT"]
[SourceTitle "playchess.com"]
[Source "ChessBase"]
[SourceQuality "1"]
[TimeControl "40/5400+30:1800+30"]

1. d4 {[%emt 0:00:00]} Nf6 {[%emt 0:00:16]} 2. Nf3 {[%emt 0:00:00]} d6 {[%emt 0:00:16]} 3. c4 {[%emt 0:00:26]} Nbd7 {[%emt 0:00:11]} 4. Nc3 {[%emt 0:00:25]} e5 {[%emt 0:00:05]} 5. g3 {[%emt 0:00:24]} Be7 {[%emt 0:00:39]} 6. Bg2 {[%emt 0:00:07]} O-O {[%emt 0:00:07]} 7. O-O {[%emt 0:00:04]} c6 {[%emt 0:00:19]} 8. Qc2 {[%emt 0:05:39]} Qc7 {[%emt 0:01:28]} 9. Rd1 {[%emt 0:02:51]} Re8 {[%emt 0:01:02]} 10. h3 {[%emt 0:03:35]} Bf8 {[%emt 0:00:28]} 11. e4 {[%emt 0:00:24]} a6 {[%emt 0:00:52]} 12. Be3 {[%emt 0:04:19]} b6 {[%emt 0:08:52]} 1/2-1/2

[Event "Vienna Chess Open 2019"]
[Site "Vienna"]
[Date "2019.08.20"]
[Round "5.3"]
[White "Gschnitzer, Adrian"]
[Black "Ragger, Anna-Christina"]
[Result "1-0"]
[ECO "D11"]
[WhiteElo "2410"]
[BlackElo "2241"]
[Annotator "NA"]
[PlyCount "71"]
[EventDate "2019.08.17"]
[EventType "swiss"]
[EventCountry "AUT"]
[SourceTitle "playchess.com"]
[Source "ChessBase"]
[SourceQuality "1"]
[TimeControl "40/5400+30:1800+30"]

1. c4 {[%emt 0:00:00]} c6 {[%emt 0:00:00]} 2. d4 {[%emt 0:00:00]} d5 {[%emt 0:00:01]} 3. Nf3 {[%emt 0:00:00]} Nf6 {[%emt 0:00:14]} 4. Qc2 {[%emt 0:00:08]} dxc4 {[%emt 0:01:00]} 5. e4 {[%emt 0:00:30]} Bg4 {[%emt 0:02:46]} 6. Bxc4 {[%emt 0:00:41]} Bxf3 {[%emt 0:04:10]} 7. gxf3 {[%emt 0:00:10]} e6 {[%emt 0:23:41]} 8. Be3 {[%emt 0:01:18]} Nbd7 {[%emt 0:01:09]} 9. Nc3 {[%emt 0:02:31]} Bb4 {[%emt 0:10:42]} 10. Bd3 {[%emt 0:08:03]} e5 {[%emt 0:04:14]} 11. O-O-O {[%emt 0:01:35]} Qe7 {[%emt 0:02:54]} 12. f4 {[%emt 0:12:25]} exd4 {[%emt 0:01:22]} 13. Bxd4 {[%emt 0:00:26]} Bc5 {[%emt 0:03:01]} 14. Bxc5 {[%emt 0:07:20]} Nxc5 {[%emt 0:01:28]} 15. e5 {[%emt 0:02:27]} Nxd3+ {[%emt 0:03:21]} 16. Rxd3 {[%emt 0:03:48]} Nh5 {[%emt 0:02:45]} 17. Ne4 {[%emt 0:09:12]} O-O {[%emt 0:00:36]} 18. Rh3 {[%emt 0:01:08]} f5 {[%emt 0:01:46]} 19. Rxh5 {[%emt 0:05:12]} fxe4 {[%emt 0:00:07]} 20. Qxe4 {[%emt 0:00:21]} g6 {[%emt 0:01:11]} 21. Rg1 {[%emt 0:00:48]} Qf7 {[%emt 0:00:51]} 22. Kb1 {[%emt 0:03:20]} Rae8 {[%emt 0:15:00]} 23. f5 {[%emt 0:05:11]} Qd5 {[%emt 0:00:13]} 24. Qxd5+ {[%emt 0:06:41]} cxd5 {[%emt 0:00:27]} 25. f4 {[%emt 0:06:49]} Kh8 {[%emt 0:05:32]} 26. Rxg6 {[%emt 0:01:20]} Rxf5 {[%emt 0:04:12]} 27. Rg8+ {[%emt 0:01:37]} Rxg8 {[%emt 0:00:47]} 28. Rxf5 {[%emt 0:00:06]} Rg2 {[%emt 0:01:06]} 29. e6 {[%emt 0:03:08]} Re2 {[%emt 0:00:12]} 30. Rf8+ {[%emt 0:00:09]} Kg7 {[%emt 0:00:05]} 31. Rf7+ {[%emt 0:00:07]} Kg8 {[%emt 0:01:48]} 32. f5 {[%emt 0:00:07]} Rxh2 {[%emt 0:01:13]} 33. f6 {[%emt 0:00:20]} Re2 {[%emt 0:00:57]} 34. Rg7+ {[%emt 0:00:07]} Kf8 {[%emt 0:00:05]} 35. e7+ {[%emt 0:00:11]} Ke8 {[%emt 0:00:04]} 36. Rg8+ {[%emt 0:00:08]} 1-0

[Event "Vienna Chess Open 2019"]
[Site "Vienna"]
[Date "2019.08.20"]
[Round "5.3"]
[White "Bick, Gabriel"]
[Black "Bakhmatsky, Vladislav"]
[Result "1-0"]
[ECO "B54"]
[WhiteElo "2375"]
[BlackElo "2442"]
[Annotator "NA"]
[PlyCount "81"]
[EventDate "2019.08.17"]
[EventType "swiss"]
[EventCountry "AUT"]
[SourceTitle "playchess.com"]
[Source "ChessBase"]
[SourceQuality "1"]
[TimeControl "40/5400+30:1800+30"]

1. e4 {[%emt 0:00:29]} c5 {[%emt 0:00:00]} 2. Nf3 {[%emt 0:00:09]} d6 {[%emt 0:00:05]} 3. d4 {[%emt 0:00:10]} cxd4 {[%emt 0:00:03]} 4. Nxd4 {[%emt 0:00:08]} Nf6 {[%emt 0:00:13]} 5. f3 {[%emt 0:00:07]} e5 {[%emt 0:02:42]} 6. Nb3 {[%emt 0:00:08]} d5 {[%emt 0:00:03]} 7. Bg5 {[%emt 0:00:09]} d4 {[%emt 0:00:03]} 8. c3 {[%emt 0:00:11]} Nc6 {[%emt 0:00:01]} 9. cxd4 {[%emt 0:00:12]} Bb4+ {[%emt 0:00:06]} 10. Bd2 {[%emt 0:00:08]} Nxe4 {[%emt 0:06:01]} 11. Bxb4 {[%emt 0:00:10]} Qh4+ {[%emt 0:00:02]} 12. g3 {[%emt 0:00:10]} Nxg3 {[%emt 0:00:02]} 13. hxg3 {[%emt 0:00:10]} Qxh1 {[%emt 0:00:02]} 14. Bc5 {[%emt 0:03:09]} Bh3 {[%emt 0:26:01]} 15. N1d2 {[%emt 0:11:50]} O-O-O {[%emt 0:17:18]} 16. Qc2 {[%emt 0:01:26]} Bxf1 {[%emt 0:00:10]} 17. O-O-O {[%emt 0:00:07]} Qh6 {[%emt 0:05:52]} 18. Rxf1 {[%emt 0:00:10]} b6 {[%emt 0:00:50]} 19. Ba3 {[%emt 0:28:51]} exd4 {[%emt 0:07:16]} 20. Qf5+ {[%emt 0:00:44]} Qe6 {[%emt 0:06:38]} 21. Qxe6+ {[%emt 0:03:07]} fxe6 {[%emt 0:00:23]} 22. Re1 {[%emt 0:07:07]} e5 {[%emt 0:02:37]} 23. Ne4 {[%emt 0:01:50]} Rd5 {[%emt 0:04:39]} 24. Kd2 {[%emt 0:01:44]} Nd8 {[%emt 0:05:12]} 25. Nc1 {[%emt 0:01:16]} Nf7 {[%emt 0:02:29]} 26. Nd3 {[%emt 0:01:08]} Kd7 {[%emt 0:06:14]} 27. g4 {[%emt 0:18:35]} h6 {[%emt 0:03:46]} 28. Rh1 {[%emt 0:02:03]} Ke6 {[%emt 0:01:00]} 29. f4 {[%emt 0:06:31]} Rd7 {[%emt 0:01:38]} 30. Re1 {[%emt 0:05:36]} Rc7 {[%emt 0:01:48]} 31. fxe5 {[%emt 0:00:31]} g5 {[%emt 0:00:43]} 32. Bd6 {[%emt 0:04:56]} Nxd6 {[%emt 0:00:01]} 33. exd6 {[%emt 0:00:02]} Rg7 {[%emt 0:00:03]} 34. Ng3+ {[%emt 0:00:17]} Kd5 {[%emt 0:00:17]} 35. Nf5 {[%emt 0:00:20]} Rgh7 {[%emt 0:00:30]} 36. Re5+ {[%emt 0:00:40]} Kc6 {[%emt 0:00:05]} 37. Nb4+ {[%emt 0:00:19]} Kd7 {[%emt 0:00:07]} 38. Nd5 {[%emt 0:00:47]} Kc6 {[%emt 0:00:25]} 39. Nf6 {[%emt 0:00:20]} Rf7 {[%emt 0:00:17]} 40. Re6 {[%emt 0:01:25]} Rhf8 {[%emt 0:02:05]} 41. d7+ {[%emt 0:31:05]} 1-0

[Event "Vienna Chess Open 2019"]
[Site "Vienna"]
[Date "2019.08.20"]
[Round "5.3"]
[White "Vardaan Nagpal"]
[Black "Peralta, Fernando"]
[Result "0-1"]
[ECO "E16"]
[WhiteElo "2343"]
[BlackElo "2572"]
[Annotator "ChessBase"]
[PlyCount "88"]
[EventDate "2019.08.17"]
[EventType "swiss"]
[EventCountry "AUT"]
[SourceTitle "playchess.com"]
[Source "ChessBase"]
[SourceQuality "1"]
[TimeControl "40/5400+30:1800+30"]

1. d4 Nf6 {[%emt 0:01:02]} 2. c4 {[%emt 0:00:00]} e6 {[%emt 0:00:05]} 3. Nf3 {[%emt 0:00:00]} b6 {[%emt 0:00:45]} 4. g3 {[%emt 0:00:00]} Bb7 {[%emt 0:00:09]} 5. Bg2 {[%emt 0:00:00]} Bb4+ {[%emt 0:00:05]} 6. Bd2 {[%emt 0:00:04]} a5 {[%emt 0:00:04]} 7. O-O {[%emt 0:01:08]} O-O {[%emt 0:00:05]} 8. Nc3 {[%emt 0:02:49]} d6 {[%emt 0:00:20]} 9. Qc2 {[%emt 0:08:52]} Nbd7 {[%emt 0:00:26]} 10. Rfd1 {[%emt 0:01:01]} Bxc3 {[%emt 0:05:28]} 11. Bxc3 {[%emt 0:00:14]} Be4 {[%emt 0:00:09]} 12. Qd2 {[%emt 0:04:52]} h6 {[%emt 0:01:47]} 13. b3 {[%emt 0:07:44]} Re8 {[%emt 0:07:20]} 14. a3 {[%emt 0:04:36]} Qb8 {[%emt 0:09:54]} 15. a4 {[%emt 0:09:49]} c6 {[%emt 0:10:50]} 16. Ne1 {[%emt 0:09:25]} Bxg2 {[%emt 0:01:14]} 17. Nxg2 {[%emt 0:00:07]} d5 {[%emt 0:02:38]} 18. Bb2 {[%emt 0:02:49]} Qb7 {[%emt 0:05:00]} 19. Nf4 {[%emt 0:08:39]} Ne4 {[%emt 0:07:22]} 20. Qc2 {[%emt 0:00:23]} Rac8 {[%emt 0:00:20]} 21. f3 {[%emt 0:08:29]} Nef6 {[%emt 0:03:18]} 22. Nd3 {[%emt 0:01:53]} c5 {[%emt 0:04:07]} 23. dxc5 {[%emt 0:00:49]} bxc5 {[%emt 0:02:03]} 24. Bc3 {[%emt 0:08:37]} d4 {[%emt 0:01:50]} 25. Bxa5 {[%emt 0:02:05]} e5 {[%emt 0:00:05]} 26. e4 {[%emt 0:00:08]} dxe3 {[%emt 0:01:28]} 27. Ne1 {[%emt 0:00:07]} Nb8 {[%emt 0:05:21]} 28. Bc3 {[%emt 0:02:30]} Nc6 {[%emt 0:00:39]} 29. Qd3 {[%emt 0:02:43]} e4 {[%emt 0:08:38]} 30. Qxe3 {[%emt 0:00:49]} exf3 {[%emt 0:00:25]} 31. Qxf3 {[%emt 0:00:06]} Ne4 {[%emt 0:00:03]} 32. Rd3 {[%emt 0:03:03]} Ng5 {[%emt 0:06:09]} 33. Qf1 {[%emt 0:01:25]} Rcd8 {[%emt 0:07:56]} 34. Rad1 {[%emt 0:02:32]} Qxb3 {[%emt 0:00:22]} 35. Rxd8 {[%emt 0:01:52]} Nxd8 {[%emt 0:00:36]} 36. Rd3 {[%emt 0:00:24]} Qxc4 {[%emt 0:01:29]} 37. h4 {[%emt 0:00:12]} Ne4 {[%emt 0:01:27]} 38. Re3 {[%emt 0:00:17]} Qxa4 {[%emt 0:01:22]} 39. Qf4 {[%emt 0:00:38]} Qc6 {[%emt 0:02:07]} 40. Be5 {[%emt 0:02:21]} Nd6 {[%emt 0:04:13]} 41. Ng2 {[%emt 0:35:05]} Ne6 {[%emt 0:05:59]} 42. Qg4 {[%emt 0:00:00]} Ra8 {[%emt 0:02:57]} 43. Nf4 {[%emt 0:00:00]} Ra2 {[%emt 0:03:42]} 44. Rf3 {[%emt 0:00:00]} Qe4 {[%emt 0:03:45]} 0-1

[Event "Vienna Chess Open 2019"]
[Site "Vienna"]
[Date "2019.08.20"]
[Round "5.4"]
[White "Dastan, Muhammed Batuhan"]
[Black "Dobrovoljc, Vid"]
[Result "1-0"]
[ECO "B89"]
[WhiteElo "2582"]
[BlackElo "2331"]
[Annotator "ChessBase"]
[PlyCount "79"]
[EventDate "2019.08.17"]
[EventType "swiss"]
[EventCountry "AUT"]
[SourceTitle "playchess.com"]
[Source "ChessBase"]
[SourceQuality "1"]
[TimeControl "40/5400+30:1800+30"]

1. e4 {[%emt 0:03:27]} c5 {[%emt 0:00:02]} 2. Nf3 {[%emt 0:00:08]} d6 {[%emt 0:00:10]} 3. d4 {[%emt 0:00:09]} cxd4 {[%emt 0:00:24]} 4. Nxd4 {[%emt 0:00:04]} Nf6 {[%emt 0:00:13]} 5. Nc3 {[%emt 0:00:05]} Nc6 {[%emt 0:00:14]} 6. Bc4 {[%emt 0:00:08]} e6 {[%emt 0:00:59]} 7. Be3 {[%emt 0:00:09]} a6 {[%emt 0:01:13]} 8. Bb3 {[%emt 0:00:06]} Qc7 {[%emt 0:00:57]} 9. Qe2 {[%emt 0:00:21]} Bd7 {[%emt 0:00:59]} 10. f4 {[%emt 0:11:06]} Na5 {[%emt 0:09:45]} 11. g4 {[%emt 0:20:05]} b5 {[%emt 0:14:11]} 12. a3 {[%emt 0:26:25]} Qb7 {[%emt 0:10:01]} 13. Qf3 {[%emt 0:03:45]} e5 {[%emt 0:16:57]} 14. fxe5 {[%emt 0:07:21]} dxe5 {[%emt 0:03:53]} 15. Nf5 {[%emt 0:00:04]} Nxb3 {[%emt 0:08:43]} 16. cxb3 {[%emt 0:00:06]} Bc6 {[%emt 0:00:17]} 17. Qg3 {[%emt 0:00:08]} O-O-O {[%emt 0:08:18]} 18. O-O {[%emt 0:01:45]} h5 {[%emt 0:05:31]} 19. gxh5 {[%emt 0:02:24]} Nxh5 {[%emt 0:02:38]} 20. Qxe5 {[%emt 0:01:23]} Nf6 {[%emt 0:02:46]} 21. Qf4 {[%emt 0:04:58]} Re8 {[%emt 0:08:01]} 22. Rac1 {[%emt 0:07:34]} g5 {[%emt 0:01:25]} 23. Qg3 {[%emt 0:02:42]} Nh5 {[%emt 0:00:54]} 24. Nd6+ {[%emt 0:05:47]} Bxd6 {[%emt 0:00:06]} 25. Qxd6 {[%emt 0:00:03]} Re6 {[%emt 0:01:24]} 26. Qd4 {[%emt 0:00:05]} Rd8 {[%emt 0:00:39]} 27. Nd5 {[%emt 0:00:05]} Kb8 {[%emt 0:00:41]} 28. Rxf7 {[%emt 0:00:52]} Qxf7 {[%emt 0:01:16]} 29. Qb6+ {[%emt 0:00:04]} Kc8 {[%emt 0:00:10]} 30. Rxc6+ {[%emt 0:00:14]} Rxc6 {[%emt 0:00:14]} 31. Qxc6+ {[%emt 0:00:03]} Kb8 {[%emt 0:00:12]} 32. Qb6+ {[%emt 0:01:02]} Kc8 {[%emt 0:00:26]} 33. Qxa6+ {[%emt 0:00:10]} Qb7 {[%emt 0:02:08]} 34. Qe6+ {[%emt 0:00:04]} Kb8 {[%emt 0:00:40]} 35. Qe5+ {[%emt 0:00:04]} Ka8 {[%emt 0:00:26]} 36. Nc7+ {[%emt 0:00:06]} Kb8 {[%emt 0:00:10]} 37. Ne6+ {[%emt 0:00:41]} Kc8 {[%emt 0:00:16]} 38. Qc3+ {[%emt 0:00:04]} Kd7 {[%emt 0:00:56]} 39. Nc5+ {[%emt 0:00:07]} Kc6 {[%emt 0:00:20]} 40. Nxb7+ {[%emt 0:00:11] Kd5} 1-0

[Event "Vienna Chess Open 2019"]
[Site "Vienna"]
[Date "2019.08.20"]
[Round "5.4"]
[White "Mons, Leon"]
[Black "Tryggestad, Andreas Garberg"]
[Result "1/2-1/2"]
[ECO "A34"]
[WhiteElo "2559"]
[BlackElo "2343"]
[Annotator "ChessBase"]
[PlyCount "69"]
[EventDate "2019.08.17"]
[EventType "swiss"]
[EventCountry "AUT"]
[SourceTitle "playchess.com"]
[Source "ChessBase"]
[SourceQuality "1"]
[TimeControl "40/5400+30:1800+30"]

1. c4 {[%emt 0:00:00]} Nf6 {[%emt 0:01:00]} 2. Nc3 {[%emt 0:00:00]} c5 {[%emt 0:00:04]} 3. g3 {[%emt 0:02:39]} g6 {[%emt 0:03:09]} 4. Bg2 {[%emt 0:00:04]} Bg7 {[%emt 0:00:04]} 5. e4 {[%emt 0:02:25]} Nc6 {[%emt 0:00:20]} 6. Nge2 {[%emt 0:00:14]} O-O {[%emt 0:01:28]} 7. O-O {[%emt 0:01:04]} d6 {[%emt 0:01:26]} 8. d3 {[%emt 0:01:14]} a6 {[%emt 0:01:24]} 9. Rb1 {[%emt 0:00:44]} Bd7 {[%emt 0:01:05]} 10. a3 {[%emt 0:03:50]} Rb8 {[%emt 0:09:53]} 11. b4 {[%emt 0:00:09]} cxb4 {[%emt 0:04:15]} 12. axb4 {[%emt 0:00:04]} b5 {[%emt 0:00:05]} 13. cxb5 {[%emt 0:00:24]} axb5 {[%emt 0:00:06]} 14. d4 {[%emt 0:14:35]} e5 {[%emt 0:05:59]} 15. dxe5 {[%emt 0:03:02]} dxe5 {[%emt 0:00:43]} 16. Be3 {[%emt 0:01:30]} Be6 {[%emt 0:00:38]} 17. Nd5 {[%emt 0:02:37]} Nd7 {[%emt 0:03:22]} 18. Qd2 {[%emt 0:03:19]} Nb6 {[%emt 0:01:58]} 19. Bxb6 {[%emt 0:05:13]} Rxb6 {[%emt 0:01:04]} 20. Rfc1 {[%emt 0:03:38]} Bxd5 {[%emt 0:12:01]} 21. exd5 {[%emt 0:00:06]} Nd4 {[%emt 0:03:04]} 22. Nxd4 {[%emt 0:00:59]} exd4 {[%emt 0:00:01]} 23. Rc5 {[%emt 0:00:31]} Qa8 {[%emt 0:08:27]} 24. Qd3 {[%emt 0:19:29]} Qa2 {[%emt 0:00:55]} 25. Bf3 {[%emt 0:04:53]} Ra8 {[%emt 0:10:23]} 26. Re1 {[%emt 0:09:51]} Qa4 {[%emt 0:03:06]} 27. Rb1 {[%emt 0:01:50]} h6 {[%emt 0:00:49]} 28. Bd1 {[%emt 0:01:16]} Qa3 {[%emt 0:02:33]} 29. Qd2 {[%emt 0:01:18]} Qa2 {[%emt 0:04:09]} 30. Rb2 {[%emt 0:00:33]} Qa1 {[%emt 0:01:40]} 31. Rc1 {[%emt 0:00:26]} Qa3 {[%emt 0:00:34]} 32. Bb3 {[%emt 0:01:02]} Rbb8 {[%emt 0:00:52]} 33. Rc7 {[%emt 0:01:39]} Qa1+ {[%emt 0:04:30]} 34. Kg2 {[%emt 0:00:59]} d3 {[%emt 0:00:47]} 35. Ra2 {[%emt 0:03:52]} 1/2-1/2